{"text_format":"3","workbook":"xlsx","n_sheets":2,"sheets":["START","BUDGETTOOL"],"not_rendered":{"defined_names":2},"read":"whole","date_system":"1900"}

{"sheet":"START","index":0,"n_rows":7,"n_cols":2,"rows_kept":7}
[null,"ÜBER DIESE VORLAGE"]
[null,"Verfolgen Sie die Anfangsinvestitionen in Ihre Website, ihren Nutzen und ihre Kosten mithilfe dieses Website-Budgettool nach."]
[null,"Setzen Sie den Firmenname und das Datum ein."]
[null,"Geben Sie Details in Tabellen ein, um Summen und die Auswertungsmetriken automatisch zu berechnen."]
[null,"Anmerkung:  "]
[null,"Weitere Anweisungen wurden in Spalte A des Arbeitsblatts BUDGETTOOL bereitgestellt. Dieser Text wurde absichtlich ausgeblendet. Um die Texte zu entfernen, wählen Sie Spalte A und dann ENTF aus. Um die Texte einzublenden, wählen Sie Spalte A aus, und ändern Sie die Schriftfarbe."]
[null,"Um mehr über Tabellen zu erfahren, drücken Sie auf dem Arbeitsblatt die UMSCHALTTASTE und dann F10 innerhalb einer Tabelle, wählen Sie die Option TABELLE und dann ALTERNATIVTEXT aus."]

{"sheet":"BUDGETTOOL","index":1,"n_rows":43,"n_cols":6,"rows_kept":43,"merged":[[14,1,14,5],[22,1,22,5],[30,1,30,5],[38,1,38,5]]}
["Erstellen Sie auf diesem Arbeitsblatt ein Websitebudget. Nützliche Anweisungen zum Verwenden dieses Arbeitsblatts befinden sich in Zellen in dieser Spalte. Drücken Sie die NACH-UNTEN-TASTE, um anzufangen."]
["Geben Sie den Firmennamen in der Zelle rechts ein.","Firmenname"]
["Der Titel dieses Arbeitsblatts befindet sich in der Zelle rechts.","Website-Budgettool"]
["Geben Sie das Datum in der Zelle rechts ein.","Datum"]
["Der Tipp steht in der Zelle rechts.","Graue Zellen enthalten Berechnungen, die nicht geändert werden sollten."]
["Geben Sie Details in der Tabelle \"Satz\" ein, die in der Zelle rechts anfängt. Die nächste Anweisung finden Sie in Zelle A10.","Unternehmensdaten","Satz"]
[null,"Erforderliche Ertragsrate",{"v":0.1,"d":"10%"}]
[null,"Steuersatz",{"v":0.3,"d":"30%"}]
[]
["Geben Sie Details in der Tabelle \"AnfangsInvest\" ein, die in der Zelle rechts anfängt. Die nächste Anweisung finden Sie in Zelle A16.","Anfangsinvestition in die Website","JAHR","1","2","3"]
[null,"Hardware (z. B. Server)",{"v":25000,"d":"25,000.00 €"}]
[null,"Software (z. B. Software für e-Commerce-Katalog)",{"v":15000,"d":"15,000.00 €"}]
[null,"Entwicklung (z. B. Entwurf und Entwicklung durch Drittanbieter)",{"v":150000,"d":"150,000.00 €"}]
[null,"Anfangsinvestitionen gesamt",{"$f":"SUBTOTAL(109,AnfangsInvest[JAHR])","v":{"v":190000,"d":"190,000.00 €"}}]
[]
["Geben Sie Details in der Tabelle \"Nutzen\" ein, die in der Zelle rechts anfängt. Die nächste Anweisung finden Sie in Zelle A24.","Nutzen der Website","JAHR","1","2","3"]
[null,"Direktverkäufe",null,{"v":15000,"d":"15,000.00 €"},{"v":50000,"d":"50,000.00 €"},{"v":75000,"d":"75,000.00 €"}]
[null,"Gesteigerte Verkäufe aufgrund besserer Effektivität von Werbung/Verkäufern",null,{"v":25000,"d":"25,000.00 €"},{"v":25000,"d":"25,000.00 €"},{"v":25000,"d":"25,000.00 €"}]
[null,"Gesteigerte Verkäufe aufgrund stärkerer Beteiligung von Partnern",null,{"v":25000,"d":"25,000.00 €"},{"v":25000,"d":"25,000.00 €"},{"v":25000,"d":"25,000.00 €"}]
[null,"Verringerte Reisekosten",null,{"v":25000,"d":"25,000.00 €"},{"v":25000,"d":"25,000.00 €"},{"v":25000,"d":"25,000.00 €"}]
[null,"Verringerte Kundendienstkosten",null,{"v":50000,"d":"50,000.00 €"},{"v":50000,"d":"50,000.00 €"},{"v":50000,"d":"50,000.00 €"}]
[null,"Nutzen gesamt",null,{"$f":"SUBTOTAL(109,Nutzen[1])","v":{"v":140000,"d":"140,000.00 €"}},{"$f":"SUBTOTAL(109,Nutzen[2])","v":{"v":175000,"d":"175,000.00 €"}},{"$f":"SUBTOTAL(109,Nutzen[3])","v":{"v":200000,"d":"200,000.00 €"}}]
[]
["Geben Sie Details in der Tabelle \"Kosten\" ein, die in der Zelle rechts anfängt. Die Werte werden in Zellen, die Formeln enthalten, automatisch berechnet. Die nächste Anweisung finden Sie in Zelle A32.","Kosten (mit Ausnahme der Anfangskapitalinvestitionen)","JAHR","1","2","3"]
[null,"Vertriebskosten",null,{"v":7500,"d":"7,500.00 €"},{"v":25000,"d":"25,000.00 €"},{"v":37500,"d":"37,500.00 €"}]
[null,"Wartung",null,{"v":15000,"d":"15,000.00 €"},{"v":15000,"d":"15,000.00 €"},{"v":15000,"d":"15,000.00 €"}]
[null,"Projektmanagement, Kundensupport",null,{"v":35000,"d":"35,000.00 €"},{"v":35000,"d":"35,000.00 €"},{"v":35000,"d":"35,000.00 €"}]
[null,"Onlinewerbung, Suchmaschinenregistrierung",null,{"v":10000,"d":"10,000.00 €"},{"v":10000,"d":"10,000.00 €"},{"v":10000,"d":"10,000.00 €"}]
[null,"Abschreibung auf Kapitalaufwand (die Berechnung verwendet einen Drei-Jahres-Zeitraum)",null,{"$f":"AnfangsInvest[[#Totals],[JAHR]]/3","v":{"v":63333.333333333336,"d":"63,333.33 €"}},{"$f":"AnfangsInvest[[#Totals],[JAHR]]/3","v":{"v":63333.333333333336,"d":"63,333.33 €"}},{"$f":"AnfangsInvest[[#Totals],[JAHR]]/3","v":{"v":63333.333333333336,"d":"63,333.33 €"}}]
[null,"Gesamtkosten",null,{"$f":"SUBTOTAL(109,Kosten[1])","v":{"v":130833.33333333334,"d":"130,833.33 €"}},{"$f":"SUBTOTAL(109,Kosten[2])","v":{"v":148333.33333333334,"d":"148,333.33 €"}},{"$f":"SUBTOTAL(109,Kosten[3])","v":{"v":160833.33333333334,"d":"160,833.33 €"}}]
[]
["Die Werte werden in der Tabelle \"Summen\", die in der Zelle rechts beginnt, automatisch berechnet. Die nächste Anweisung finden Sie in Zelle A40.","Summen","JAHR","1","2","3"]
[null,"Nettonutzen (Kosten)",null,{"$f":"Nutzen[[#Totals],[1]]-Kosten[[#Totals],[1]]","v":{"v":9166.666666666657,"d":"9,166.67 €"}},{"$f":"Nutzen[[#Totals],[2]]-Kosten[[#Totals],[2]]","v":{"v":26666.666666666657,"d":"26,666.67 €"}},{"$f":"Nutzen[[#Totals],[3]]-Kosten[[#Totals],[3]]","v":{"v":39166.66666666666,"d":"39,166.67 €"}}]
[null,"Steuern",null,{"$f":"D33*SteuerSatz","v":{"v":2749.999999999997,"d":"2,750.00 €"}},{"$f":"E33*SteuerSatz","v":{"v":7999.999999999996,"d":"8,000.00 €"}},{"$f":"F33*SteuerSatz","v":{"v":11749.999999999996,"d":"11,750.00 €"}}]
[null,"Wert nach Steuern",null,{"$f":"D33-D34","v":{"v":6416.666666666661,"d":"6,416.67 €"}},{"v":18666.66666666666,"d":"18,666.67 €"},{"v":27416.66666666666,"d":"27,416.67 €"}]
[null,"Zuzüglich Abschreibung",null,{"$f":"D29","v":{"v":63333.333333333336,"d":"63,333.33 €"}},{"$f":"E29","v":{"v":63333.333333333336,"d":"63,333.33 €"}},{"$f":"F29","v":{"v":63333.333333333336,"d":"63,333.33 €"}}]
[null,"Cashflow",{"$f":"-AnfangsInvest[[#Totals],[JAHR]]","v":{"v":-190000,"d":"-190,000.00 €"}},{"$f":"D35+D36","v":{"v":69750,"d":"69,750.00 €"}},{"v":82000,"d":"82,000.00 €"},{"v":90750,"d":"90,750.00 €"}]
[null,"Kumulierter Cashflow",{"$f":"C37","v":{"v":-190000,"d":"-190,000.00 €"}},{"$f":"C38+D37","v":{"v":-120250,"d":"-120,250.00 €"}},{"v":-38250,"d":"-38,250.00 €"},{"v":52500,"d":"52,500.00 €"}]
[]
["Die Auswertungsmetriken werden in der Tabelle \"Metriken\", die in der Zelle rechts beginnt, automatisch berechnet.","Auswertungsmetriken","Werte"]
[null,"Nettobarwert (NBW)",{"$f":"C37+(NPV(ROR,D37:F37))","v":{"v":9359.504132231377,"d":"9,359.50 €"}}]
[null,"Interner Zinsfuß (IKV)",{"$f":"IRR(C37:F37)","v":{"v":0.12655165144706393,"d":"12.66%"}}]
[null,"Amortisierungszeitraum in Jahren",{"$f":"IF(F38<=0,\"Überschreitet 3 Jahre\",IF(E38<=0,(F37-F38)/F37+2,IF(D38<=0,(E37-E38)/E37+1,IF(C38<=0,(D37-D38)/D37,\"N/V\"))))","v":{"v":2.4214876033057853,"d":"2.42"}}]